[Event "FIDE WY-U16 Olympiad 2022"]
[Site "Nakhchivan"]
[Date "2022.10.03"]
[Round "2.8"]
[White "Shukurova, Aydan"]
[Black "Omonova, Umida"]
[Result "0-1"]
[ECO "A52"]
[WhiteElo "1732"]
[BlackElo "2196"]
[Annotator "TA"]
[PlyCount "102"]
[EventDate "2022.10.02"]
[EventType "team-tourn"]
[EventCountry "AZE"]
[TimeControl "40/5400+30:1800+30"]

{[%evp 12,102,0,0,51,0,82,82,111,57,54,58,101,56,131,127,116,54,45,51,52,0,58,54,48,40,38,40,74,6,5,7,16,-27,-21,-22,-15,-20,-12,-15,0,-45,-43,-43,-12,-12,-14,-10,0,-20,13,13,30,34,39,6,25,9,38,33,33,31,63,64,73,0,0,-97,-91,-174,-170,-194,-184,-245,-241,-216,-243,-259,-246,-282,-264,-365,-343,-318,-254,-484,-492,-475,-482,-487,-489,-1222,-1190]} 1. d4 {[%emt 0:00:09]} Nf6 {[%emt 0:00:44]} 2. c4 {[%emt 0:00:05]} e5 {[%emt 0:00:43]} 3. dxe5 {[%emt 0:00:33]} Ng4 {[%emt 0:00:11]} 4. e4 {[%emt 0:00:17]} Nxe5 {[%emt 0:00:10]} 5. f4 {[%emt 0:00:04]} Nec6 {[%emt 0:00:10]} 6. Be3 {[%emt 0:00:39]} Bb4+ {[%emt 0:01:05]} 7. Nc3 {[%emt 0:00:46]} Qe7 {[%emt 0:01:05] A52: Budapest Gambit.} (7... Bxc3+ $11 8. bxc3 O-O) 8. Bd3 {[%emt 0:00:54]} (8. Nge2 $1 $14) 8... O-O {[%emt 0:05:33] [#]} (8... Bxc3+ $11 {remains equal.} 9. bxc3 Na6) 9. Nge2 $1 $16 {[%emt 0:11:22] [#]} Qh4+ $146 {[%emt 0:08:02] White is better.} ({Predecessor:} 9... f5 10. O-O Bxc3 11. Nxc3 d6 12. Qf3 Be6 13. Rae1 Qf7 14. c5 dxc5 15. Bxc5 Rd8 {1-0 (29) Chojnacki,K (2437)-Lambucki,L (1844) Poznan 2011}) 10. Ng3 {[%emt 0:03:17]} (10. Bf2 $16 Bxc3+ 11. Nxc3 (11. bxc3 Qh6 $14) 11... Qxf4 12. Nd5) 10... d6 $14 {[%emt 0:03:28]} 11. O-O {[%emt 0:02:10]} Bg4 {[%emt 0:02:55]} 12. Be2 {[%emt 0:03:30]} Bxc3 {[%emt 0:03:00]} (12... Bxe2 $14 13. Ncxe2 Nd7) 13. Bxg4 $16 {[%emt 0:02:43]} ({Don't play} 13. bxc3 $6 Bxe2 14. Qxe2 Qe7 $14) 13... Bd4 {[%emt 0:09:11]} 14. Nf5 {[%emt 0:06:30]} ({White should play} 14. Bxd4 $16 Nxd4 15. Qxd4 Qxg4 16. Nf5) 14... Bxe3+ $14 {[%emt 0:00:30]} 15. Nxe3 {[%emt 0:00:07]} Na6 {[%emt 0:02:07]} 16. Rf3 {[%emt 0:02:54]} (16. Nd5 $14) 16... Qf6 {[%emt 0:02:06]} (16... Rfe8 $11) 17. Nd5 {[%emt 0:21:24]} Qd4+ {[%emt 0:02:40]} 18. Qxd4 {[%emt 0:01:32]} (18. Re3 {keeps more tension.} Qxb2 19. Rb3 Qd4+ 20. Qxd4 Nxd4 21. Rxb7 Rfe8 22. Rxc7 Nxc7 23. Nxc7 Rab8 24. Nxe8 Rxe8 25. Rb1) 18... Nxd4 {[%emt 0:00:25]} 19. Rd3 {[%emt 0:01:32]} Ne6 {[%emt 0:03:56]} 20. Rh3 {[%emt 0:09:08]} ({Better is} 20. g3 $16) 20... Rae8 $11 {[%emt 0:03:27]} 21. Rf1 {[%emt 0:06:13]} c6 {[%emt 0:01:59]} 22. Bxe6 {[%emt 0:02:46]} Rxe6 {[%emt 0:04:00]} 23. Nc3 {[%emt 0:00:14]} Nc5 {[%emt 0:01:25]} 24. f5 {[%emt 0:02:12]} Re5 {[%emt 0:00:28]} 25. Re3 {[%emt 0:01:23]} Rfe8 {[%emt 0:01:39][%cal Rc5e4]} 26. Rfe1 {[%emt 0:00:19]} a5 {[%emt 0:00:53]} 27. g4 {[%emt 0:01:59]} f6 {[%emt 0:00:52]} 28. Kg2 {[%emt 0:00:28]} Kf7 {[%emt 0:01:03]} 29. Kf3 {[%emt 0:00:17]} Rh8 {[%emt 0:01:24]} (29... g6 {is interesting.} 30. Rd1 h5 31. h3 Rh8) 30. Rd1 {[%emt 0:01:41]} Ke7 {[%emt 0:00:36]} 31. Ne2 {[%emt 0:03:12]} Kd7 {[%emt 0:09:33]} 32. Nf4 {[%emt 0:01:06]} Rhe8 {[%emt 0:01:14][%cal Rc5e4]} 33. Rde1 {[%emt 0:00:05]} Kc7 {[%emt 0:02:11]} 34. h4 {[%emt 0:01:20]} Nd7 {[%emt 0:02:02]} 35. b3 {[%emt 0:03:59]} R5e7 {[%emt 0:03:48]} 36. Ne6+ {[%emt 0:01:47]} Rxe6 {[%emt 0:02:05]} 37. fxe6 {[%emt 0:00:05]} Rxe6 $14 {[%emt 0:00:07][%mdl 4096] Endgame KRR-KRN} 38. a3 {[%emt 0:01:13]} (38. g5 $16) 38... a4 $11 {[%emt 0:04:19]} 39. b4 {[%emt 0:00:41]} (39. bxa4 $11 {keeps the balance.} Ne5+ 40. Kf4) 39... Ne5+ $17 {[%emt 0:00:14]} 40. Kg3 {[%emt 0:00:21]} (40. Kf4 $17) 40... Nxc4 $19 {[%emt 0:00:06]} 41. Rc3 {[%emt 0:30:12]} Nd2 {[%emt 0:31:43]} 42. Rce3 {[%emt 0:02:02] [#]} (42. Kf4 $142) 42... d5 $1 {[%emt 0:01:45]} 43. Rd3 {[%emt 0:07:50]} Nxe4+ {[%emt 0:00:09]} ({Stronger than} 43... Rxe4 44. Rxe4 Nxe4+ 45. Kf4 $17) 44. Kg2 {[%emt 0:00:11]} Kd6 {[%emt 0:01:03]} 45. Red1 {[%emt 0:00:28]} Re5 {[%emt 0:00:09]} 46. Rb1 {[%emt 0:00:00]} b6 {[%emt 0:00:00]} 47. Kf3 {[%emt 0:00:00]} g6 {[%emt 0:00:00]} 48. Kg2 $2 {[%emt 0:00:00]} (48. Rc1) 48... h5 {[%emt 0:00:00] Black is clearly winning.} 49. gxh5 {[%emt 0:00:00]} Rxh5 {[%emt 0:00:00]} 50. Rh1 {[%emt 0:00:00]} g5 {[%emt 0:00:00]} 51. hxg5 {[%emt 0:00:00]} (51. Rd4 $142 Rxh4 52. Rhd1) 51... Rxh1 {[%emt 0:00:00] Weighted Error Value: White=0.42/Black=0.16 (very precise)} 0-1

[Event "FIDE WY-U16 Olympiad 2022"]
[Site "Nakhchivan"]
[Date "2022.10.03"]
[Round "2.9"]
[White "Montes Orozco, Miguel Angel"]
[Black "Pranav Vijay"]
[Result "0-1"]
[ECO "E15"]
[WhiteElo "2051"]
[BlackElo "2265"]
[Annotator "NA RC"]
[PlyCount "74"]
[EventDate "2022.10.02"]
[EventType "team-tourn"]
[EventCountry "AZE"]
[SourceTitle "playchess.com"]
[Source "ChessBase"]
[SourceQuality "1"]
[WhiteTeam "Mexico"]
[BlackTeam "India"]
[WhiteTeamCountry "MEX"]
[BlackTeamCountry "IND"]
[TimeControl "40/5400+30:1800+30"]

1. d4 {[%emt 0:00:04]} Nf6 {[%emt 0:00:08]} 2. c4 {[%emt 0:00:12]} e6 {[%emt 0:00:05]} 3. Nf3 {[%emt 0:00:06]} b6 {[%emt 0:00:06]} 4. g3 {[%emt 0:00:20]} Ba6 $11 {[%emt 0:00:06]} 5. Qc2 {[%emt 0:02:16]} c5 {[%emt 0:00:56]} 6. Bg2 {[%emt 0:03:12]} Bb7 {[%emt 0:00:23]} 7. O-O {[%emt 0:00:56]} cxd4 {[%emt 0:01:47]} 8. Nxd4 {[%emt 0:03:09]} Bxg2 {[%emt 0:00:18]} 9. Kxg2 {[%emt 0:00:05]} Qc7 {[%emt 0:00:42]} 10. Rd1 {[%emt 0:07:24]} Be7 {[%emt 0:01:42]} 11. b3 {[%emt 0:04:01]} O-O {[%emt 0:02:02]} 12. Ba3 {[%emt 0:07:45]} Bxa3 {[%emt 0:02:22]} 13. Nxa3 {[%emt 0:00:14]} a6 {[%emt 0:00:05]} 14. Qb2 {[%emt 0:26:35]} d6 {[%emt 0:02:11]} 15. Nac2 {[%emt 0:03:32]} Nbd7 {[%emt 0:00:57]} 16. Nb4 {[%emt 0:02:22]} Nc5 {[%emt 0:04:48]} 17. f3 {[%emt 0:00:52]} Qb7 {[%emt 0:02:23]} 18. e4 {[%emt 0:03:35]} Rac8 {[%emt 0:00:23]} 19. Qf2 {[%emt 0:05:58]} Rfd8 {[%emt 0:02:26]} 20. Rac1 {[%emt 0:02:44]} h6 {[%emt 0:01:32]} 21. Qe3 {[%emt 0:04:39]} Nfd7 {[%emt 0:02:15]} 22. Nd3 {[%emt 0:02:27]} Nxd3 {[%emt 0:04:42]} 23. Qxd3 {[%emt 0:00:20]} Ne5 {[%emt 0:00:53]} 24. Qe2 {[%emt 0:00:11]} Rc5 {[%emt 0:02:18]} 25. Rc2 {[%emt 0:03:29]} b5 {[%emt 0:04:41]} 26. cxb5 {[%emt 0:00:59]} Rxc2 {[%emt 0:00:36]} 27. Nxc2 {[%emt 0:00:26]} axb5 {[%emt 0:00:07]} 28. Nb4 {[%emt 0:06:27]} Qb6 {[%emt 0:03:09]} 29. Qf2 {[%emt 0:01:49]} Qc7 {[%emt 0:02:10]} 30. Qd2 {[%emt 0:00:55]} Qb7 {[%emt 0:01:43]} 31. Rc1 {[%emt 0:02:19]} Rd7 {[%emt 0:06:42]} 32. Rc3 {[%emt 0:00:45]} Qb6 {[%emt 0:03:53]} 33. Qf2 {[%emt 0:01:03]} Qa5 {[%emt 0:00:44]} 34. Qd4 {[%emt 0:00:29]} Kh7 {[%emt 0:00:56]} 35. h3 {[%emt 0:03:42]} Rc7 {[%emt 0:02:10]} 36. f4 {[%emt 0:00:12]} Nc4 {[%emt 0:02:27]} 37. Nc2 {[%emt 0:02:49]} e5 {[%emt 0:00:10]} 0-1

[Event "FIDE WY-U16 Olympiad 2022"]
[Site "Nakhchivan"]
[Date "2022.10.03"]
[Round "2.9"]
[White "Omonov, Asrorjon"]
[Black "Ismayilova, Khanim"]
[Result "1-0"]
[ECO "D02"]
[WhiteElo "2016"]
[BlackElo "1901"]
[Annotator "TA"]
[PlyCount "83"]
[EventDate "2022.10.02"]
[EventType "team-tourn"]
[EventCountry "AZE"]
[TimeControl "40/5400+30:1800+30"]

{[%evp 9,83,0,7,0,0,-4,-7,-3,8,4,10,-12,-5,-6,-13,-12,-8,-4,12,13,13,10,25,0,0,0,0,0,0,0,0,0,48,47,45,51,52,51,58,16,36,10,45,24,34,26,52,0,47,24,32,21,10,0,0,0,5,10,22,0,0,-28,18,8,107,59,329,329,648,628,1614,1511,29986,29987,29987,29988]} 1. d4 {[%emt 0:00:41]} d5 {[%emt 0:00:08]} 2. Bf4 {[%emt 0:00:21]} Nf6 {[%emt 0:00:52]} 3. Nf3 {[%emt 0:00:07]} e6 {[%emt 0:00:07]} 4. e3 {[%emt 0:00:07]} c5 {[%emt 0:00:05]} 5. c3 {[%emt 0:00:04]} Bd6 {[%emt 0:00:10]} 6. Bg3 {[%emt 0:00:05] D02: 1 d4 d5 2 Nf3 sidelines, including 2...Nf6 3 g3 and 2...Nf6 3 Bf4.} O-O {[%emt 0:00:34]} 7. Nbd2 {[%emt 0:00:06]} b6 {[%emt 0:00:34]} 8. Bd3 {[%emt 0:00:50] The position is equal.} Ba6 {[%emt 0:00:26]} 9. Bxa6 {[%emt 0:00:49]} Nxa6 {[%emt 0:00:08]} 10. Ne5 {[%emt 0:00:30]} Qc7 {[%emt 0:04:50]} 11. O-O {[%emt 0:01:41]} Nb8 {[%emt 0:00:37]} 12. f4 {[%emt 0:02:59]} Nc6 {[%emt 0:01:29]} 13. Bh4 $1 {[%emt 0:05:33]} Ne4 {[%emt 0:05:47]} 14. Nxe4 {[%emt 0:06:49]} dxe4 {[%emt 0:00:09]} 15. Qa4 {[%emt 0:01:16]} Rac8 {[%emt 0:10:27] [#]} 16. Rad1 $146 {[%emt 0:02:03]} ({Predecessor:} 16. Rac1 f6 17. Ng4 f5 18. Ne5 Bxe5 19. fxe5 Ne7 20. Bxe7 Qxe7 21. b4 Qg5 22. Rfe1 cxd4 23. exd4 {0-1 (30) Skrbec,L (1781)-Res,I (2097) Rijeka 2018}) 16... cxd4 {[%emt 0:14:03]} 17. Nxc6 {[%emt 0:16:02]} Qxc6 {[%emt 0:01:08]} 18. Qxc6 {[%emt 0:00:15]} Rxc6 {[%emt 0:00:08]} 19. Rxd4 {[%emt 0:00:07]} f5 {[%emt 0:02:06]} 20. Kf2 {[%emt 0:06:48]} Re8 {[%emt 0:24:21]} (20... Bc5 $11) 21. Rfd1 $14 {[%emt 0:05:06]} Be7 {[%emt 0:00:22]} 22. Bxe7 {[%emt 0:00:38]} Rxe7 {[%emt 0:00:07][%mdl 4096] Endgame KRR-KRR} 23. Rd8+ {[%emt 0:01:05]} Kf7 {[%emt 0:00:08]} 24. Ke2 {[%emt 0:00:19]} Rc5 {[%emt 0:03:21]} 25. g3 {[%emt 0:13:16]} a5 {[%emt 0:08:51]} 26. R1d6 {[%emt 0:04:04]} Rb7 {[%emt 0:05:13]} 27. Rd4 {[%emt 0:10:23]} Rbc7 {[%emt 0:02:26]} 28. Rb8 {[%emt 0:06:37]} (28. Kd2 $14) 28... R5c6 {[%emt 0:04:19]} (28... a4 $11 {might be stronger.}) 29. Kd1 {[%emt 0:01:43]} Ke7 {[%emt 0:01:58]} 30. Kc2 {[%emt 0:02:24]} Rc8 {[%emt 0:03:23]} 31. Rxc8 {[%emt 0:01:51]} Rxc8 $11 {[%emt 0:00:05] KR-KR} 32. Kb3 {[%emt 0:02:58]} Rc5 {[%emt 0:01:00]} 33. Ka4 {[%emt 0:00:22]} e5 {[%emt 0:00:29]} 34. fxe5 {[%emt 0:01:43]} Rxe5 {[%emt 0:00:39]} 35. h4 {[%emt 0:00:11][%cal Bh2h4,Bh4g5][%mdl 32]} h5 {[%emt 0:05:23]} (35... Re6 $142) 36. c4 {[%emt 0:00:21]} Ke6 {[%emt 0:01:56]} (36... Re6 $11) 37. a3 {[%emt 0:00:14]} (37. Rd8 $16) 37... g5 $2 {[%emt 0:00:36][%mdl 8192] [#] Black cannot hold the game after this.} (37... Ke7 $14) 38. hxg5 $18 {[%emt 0:00:16]} h4 $2 {[%emt 0:00:33]} (38... Kf7 39. Rd5 Re8 40. Rxf5+ Kg6) 39. gxh4 {[%emt 0:00:04]} f4 {[%emt 0:00:30]} 40. exf4 {[%emt 0:00:04]} e3 {[%emt 0:00:27]} 41. fxe5 {[%emt 0:30:07]} Kxe5 {[%emt 0:30:12]} 42. Rd8 {[%emt 0:00:05] Weighted Error Value: White=0.10 (very precise) /Black=0.55} 1-0

[Event "FIDE WY-U16 Olympiad 2022"]
[Site "Nakhchivan"]
[Date "2022.10.03"]
[Round "2.10"]
[White "Pranesh M"]
[Black "Galaviz Medina, Atlas Adomaitis"]
[Result "1-0"]
[ECO "B40"]
[WhiteElo "2437"]
[BlackElo "2069"]
[Annotator "RC"]
[PlyCount "69"]
[EventDate "2022.10.02"]
[EventType "team-tourn"]
[EventCountry "AZE"]
[SourceTitle "playchess.com"]
[Source "ChessBase"]
[SourceQuality "1"]
[WhiteTeam "India"]
[BlackTeam "Mexico"]
[WhiteTeamCountry "IND"]
[BlackTeamCountry "MEX"]
[TimeControl "40/5400+30:1800+30"]

1. e4 {[%emt 0:00:11]} c5 {[%emt 0:00:05]} 2. Nf3 {[%emt 0:00:12]} e6 {[%emt 0:00:36]} 3. d4 {[%emt 0:00:06]} cxd4 {[%emt 0:00:08]} 4. Nxd4 {[%emt 0:00:05]} Nf6 {[%emt 0:00:05]} 5. Bd3 {[%emt 0:00:11]} Nc6 {[%emt 0:02:00]} 6. Nxc6 {[%emt 0:00:14]} bxc6 {[%emt 0:00:13]} 7. O-O {[%emt 0:00:23]} d5 {[%emt 0:02:17]} 8. e5 {[%emt 0:00:12]} Nd7 {[%emt 0:00:05]} 9. Re1 {[%emt 0:00:05]} Bc5 {[%emt 0:05:08]} 10. Qg4 {[%emt 0:01:10]} g6 {[%emt 0:06:52]} 11. Nd2 {[%emt 0:05:56]} Qb6 {[%emt 0:03:53]} 12. Qg3 {[%emt 0:04:52]} Bb7 {[%emt 0:06:44]} 13. Nf3 {[%emt 0:01:57]} Bf8 {[%emt 0:05:09]} 14. Be3 {[%emt 0:02:11]} c5 {[%emt 0:01:31]} 15. b4 {[%emt 0:00:44]} Qc7 {[%emt 0:05:38]} 16. bxc5 {[%emt 0:01:25]} a6 {[%emt 0:01:33]} 17. Qh4 {[%emt 0:06:08]} Bg7 {[%emt 0:08:55]} 18. Bh6 {[%emt 0:02:46]} Bxh6 {[%emt 0:00:45]} 19. Qxh6 {[%emt 0:00:12]} Nxc5 {[%emt 0:00:35]} 20. Rab1 {[%emt 0:06:05]} O-O-O {[%emt 0:11:02]} 21. Rb4 {[%emt 0:02:23]} Kb8 {[%emt 0:04:15]} 22. Reb1 {[%emt 0:04:26]} Ka8 {[%emt 0:04:18]} 23. Rb6 {[%emt 0:11:02]} Rb8 {[%emt 0:05:06]} 24. Qf4 {[%emt 0:03:23]} Bc6 {[%emt 0:15:37]} 25. Rxb8+ {[%emt 0:00:28]} Rxb8 {[%emt 0:00:08]} 26. Rxb8+ {[%emt 0:00:04]} Qxb8 {[%emt 0:00:14]} 27. h4 {[%emt 0:00:27]} Nxd3 {[%emt 0:01:31]} 28. cxd3 {[%emt 0:00:07]} Qb1+ {[%emt 0:00:05]} 29. Kh2 {[%emt 0:00:04]} Qxd3 {[%emt 0:01:00]} 30. Qxf7 {[%emt 0:00:06]} Qf5 31. Qg8+ {[%emt 0:03:01]} Kb7 {[%emt 0:02:04]} 32. Qxh7+ {[%emt 0:00:10]} Kb6 {[%emt 0:00:17]} 33. Qe7 {[%emt 0:01:13]} d4 {[%emt 0:05:16]} 34. Qb4+ {[%emt 0:00:12]} Kc7 {[%emt 0:00:07]} 35. Qd6+ {[%emt 0:00:12]} 1-0

[Event "FIDE WY-U16 Olympiad 2022"]
[Site "Nakhchivan"]
[Date "2022.10.03"]
[Round "2.10"]
[White "Nuriyeva, Nurtan"]
[Black "Khamdamova, Afruza"]
[Result "0-1"]
[ECO "D59"]
[WhiteElo "1691"]
[BlackElo "2040"]
[Annotator "TA"]
[PlyCount "74"]
[EventDate "2022.10.02"]
[EventType "team-tourn"]
[EventCountry "AZE"]
[TimeControl "40/5400+30:1800+30"]

{[%evp 23,74,0,7,0,0,-6,-4,-11,0,-12,0,0,-14,-19,-29,-28,-8,-19,-5,-1,-13,-11,0,-2,0,0,0,0,22,15,31,36,46,0,0,0,0,0,0,0,0,0,0,0,25,-2,0,0,8,-29988,-29989,-29988,-29989]} 1. d4 {[%emt 0:00:11]} Nf6 {[%emt 0:00:11]} 2. Nf3 {[%emt 0:00:20]} d5 {[%emt 0:00:09]} 3. c4 {[%emt 0:00:20]} e6 {[%emt 0:00:12]} 4. Nc3 {[%emt 0:00:29]} Be7 {[%emt 0:00:12]} 5. Bg5 {[%emt 0:00:31]} O-O {[%emt 0:00:13]} 6. e3 {[%emt 0:00:49]} h6 {[%emt 0:00:21]} 7. Bh4 {[%emt 0:00:31]} b6 {[%emt 0:00:23]} 8. cxd5 {[%emt 0:01:39]} Nxd5 {[%emt 0:00:10]} 9. Bxe7 {[%emt 0:03:35]} Qxe7 {[%emt 0:00:07]} 10. Nxd5 {[%emt 0:00:14]} exd5 {[%emt 0:00:05]} 11. Rc1 {[%emt 0:01:51]} Be6 {[%emt 0:00:49]} 12. Bd3 {[%emt 0:01:44]} c5 {[%emt 0:00:32]} 13. dxc5 {[%emt 0:03:14] D59: Queen's Gambit Declined: Tartakower Defence: Main line (8 cxd5 Nxd5).} bxc5 {[%emt 0:00:06]} 14. Qc2 {[%emt 0:00:09]} Nd7 {[%emt 0:11:50]} 15. O-O {[%emt 0:00:24] The position is equal.} Rfc8 {[%emt 0:00:07] [#]} 16. h3 $146 {[%emt 0:00:33]} ({Predecessor:} 16. Rfd1 Rc7 17. Bf5 Rac8 18. Bxe6 Qxe6 19. b4 c4 20. Qd2 Nb6 21. Nd4 Qd7 22. h3 {0-1 (33) Bilan,D (2303)-Korkmaz,N (2107) Chess.com INT 2021}) 16... Nf6 {[%emt 0:15:05]} 17. Rfd1 {[%emt 0:04:13]} Qb7 {[%emt 0:00:36]} 18. Qe2 {[%emt 0:17:33] Black must now prevent Ba6.} a5 {[%emt 0:03:46]} 19. Bb1 {[%emt 0:06:44]} Rab8 {[%emt 0:05:21]} 20. b3 {[%emt 0:01:06]} Qb4 {[%emt 0:09:16]} 21. Ne5 {[%emt 0:09:09][%cal Bf3e5,Be5d3,Bd3f4][%mdl 32]} a4 {[%emt 0:11:27]} 22. Nd3 {[%emt 0:06:37]} Qa3 {[%emt 0:03:22]} 23. bxa4 {[%emt 0:03:51]} c4 {[%emt 0:16:36]} 24. Nf4 {[%emt 0:00:21]} Qxa4 {[%emt 0:03:58]} 25. e4 {[%emt 0:01:51][%cal Rf4d5]} Re8 {[%emt 0:02:24]} 26. e5 {[%emt 0:01:47]} c3 {[%emt 0:06:21]} (26... g5 $2 27. exf6 Rxb1 28. Rxb1 $18) 27. Nxe6 {[%emt 0:23:49]} Rxe6 {[%emt 0:01:10]} 28. Rxc3 {[%emt 0:01:47]} (28. Bf5 $14 {deserves consideration.} Re7 29. Qe3) 28... Rxe5 $11 {[%emt 0:00:21]} 29. Qc2 {[%emt 0:01:14]} Qe8 {[%emt 0:01:06]} 30. Kh2 {[%emt 0:05:37]} Re2 {[%emt 0:04:29]} 31. Qf5 {[%emt 0:00:29]} Qe6 {[%emt 0:01:29]} 32. Qf4 {[%emt 0:03:09]} Re8 {[%emt 0:00:14]} 33. a4 {[%emt 0:00:34]} Nh5 {[%emt 0:00:34]} 34. Qf5 {[%emt 0:00:32]} (34. Qd4 $5 {[%cal Rd4d5]}) 34... Qd6+ {[%emt 0:00:45]} 35. g3 {[%emt 0:00:05]} g6 {[%emt 0:00:59][%cal Bg7g6,Bg6f5][%mdl 32] Active counter play!} 36. Rxd5 {[%emt 0:00:56][%mdl 8192] [#]} (36. Qf3 $11) 36... Qb6 {[%emt 0:00:38]} ({Not} 36... gxf5 37. Rxd6 Rxf2+ 38. Kg1 $17) 37. Kg2 {[%emt 0:00:29]} gxf5 {[%emt 0:00:08] Weighted Error Value: White=0.26 (precise) /Black=0.07 (flawless)} 0-1

[Event "FIDE WY-U16 Olympiad 2022"]
[Site "Nakhchivan"]
[Date "2022.10.03"]
[Round "2.11"]
[White "Zacarias Rodriguez, Santiago"]
[Black "Harshad S"]
[Result "1/2-1/2"]
[ECO "B92"]
[WhiteElo "2091"]
[BlackElo "2228"]
[Annotator "TA"]
[PlyCount "130"]
[EventDate "2022.10.02"]
[EventType "team-tourn"]
[EventCountry "AZE"]
[TimeControl "40/5400+30:1800+30"]

{[%evp 19,130,0,4,4,0,-5,13,0,0,7,7,8,2,11,15,0,24,3,13,12,16,12,14,7,12,13,19,0,11,0,13,12,8,0,0,-7,0,0,0,0,0,0,18,20,33,22,38,6,16,8,9,0,0,0,0,0,0,2,2,0,0,0,0,0,0,0,0,0,0,0,0,0,0,0,0,0,0,0,0,0,0,0,0,0,0,0,0,0,0,0,0,0,0,0,0,0,0,0,0,0,0,0,0,0,0,0,0,0,0,0,0,0,0]} 1. e4 {[%emt 0:00:12]} c5 {[%emt 0:00:17]} 2. Nf3 {[%emt 0:00:16]} d6 {[%emt 0:00:02]} 3. d4 {[%emt 0:00:08]} cxd4 {[%emt 0:00:07]} 4. Nxd4 {[%emt 0:00:22]} Nf6 {[%emt 0:00:02]} 5. Nc3 {[%emt 0:00:08]} a6 {[%emt 0:00:15]} 6. Be2 {[%emt 0:01:07]} e5 {[%emt 0:00:04]} 7. Nf3 {[%emt 0:00:22]} Be7 {[%emt 0:00:15]} 8. Bg5 {[%emt 0:00:16]} Be6 {[%emt 0:00:11]} 9. Bxf6 {[%emt 0:00:31]} Bxf6 {[%emt 0:00:01]} 10. O-O {[%emt 0:00:20]} O-O {[%emt 0:01:27]} 11. Nd5 {[%emt 0:02:39] B92: Sicilian Najdorf: 6 Be2.} Nd7 {[%emt 0:03:19]} 12. Bc4 {[%emt 0:06:04]} Rc8 {[%emt 0:01:55]} 13. Qe2 {[%emt 0:00:50]} Nb6 {[%emt 0:30:08]} 14. Nxb6 {[%emt 0:03:18]} Qxb6 {[%emt 0:00:27]} 15. Bb3 {[%emt 0:00:31]} Rc5 {[%emt 0:13:04]} 16. Rfd1 {[%emt 0:08:06] [#]} Rfc8 $146 {[%emt 0:03:57]} ({Predecessor:} 16... Be7 17. Ne1 a5 18. Qe3 Qc7 19. c3 Rb5 20. Bxe6 fxe6 21. Nd3 d5 22. Re1 Bd6 {½-½ (45) Van den Doel,E (2610)-Rakotomaharo,F (2409) Prague 2019}) 17. Rd2 {[%emt 0:11:08]} a5 {[%emt 0:03:49]} 18. Bxe6 {[%emt 0:08:14]} fxe6 {[%emt 0:00:32]} 19. c3 {[%emt 0:00:56]} Qc6 {[%emt 0:05:39]} 20. Rad1 {[%emt 0:02:29]} Be7 {[%emt 0:03:42]} 21. Rd3 {[%emt 0:01:19]} a4 {[%emt 0:13:28][%cal Oa4a3]} 22. a3 {[%emt 0:03:30]} Rf8 {[%emt 0:02:15]} 23. Nd2 {[%emt 0:06:33]} Rf6 {[%emt 0:01:30]} 24. Rf3 {[%emt 0:01:09]} Qb5 {[%emt 0:03:59]} 25. c4 Qe8 {[%emt 0:03:42]} ({But not} 25... Qxb2 26. Rb1 Qc2 27. Rxb7 Rxf3 28. Qxf3 Qc1+ 29. Nf1 $16) 26. Rxf6 {[%emt 0:06:59]} Bxf6 {[%emt 0:00:01]} 27. Nb1 {[%emt 0:06:38]} Be7 {[%emt 0:05:45][%cal Bf6e7,Be7f8,Bf8h6][%mdl 32]} 28. Nc3 {[%emt 0:02:06]} Bf8 {[%emt 0:01:15]} 29. Nb1 {[%emt 0:11:55]} Qc8 {[%emt 0:00:47]} 30. Nd2 {[%emt 0:00:19]} g6 {[%emt 0:00:12]} 31. h4 {[%emt 0:02:11]} Bh6 {[%emt 0:01:36]} 32. h5 {[%emt 0:00:32]} Kg7 {[%emt 0:01:20]} 33. hxg6 {[%emt 0:01:12]} (33. Qg4 {looks sharper.} Qd7 34. Qh4 Bf4 35. g3) 33... hxg6 {[%emt 0:00:09] The position is equal.} 34. g3 {[%emt 0:01:02]} (34. Qg4 {seems wilder.} Qd7 35. Qh4 Bf4 36. Nf1) 34... Qc6 {[%emt 0:01:05]} 35. b4 {[%emt 0:03:32]} (35. Kg2 {keeps more tension.} Bxd2 36. Rxd2 Kf6 37. Qg4) 35... axb3 $1 {[%emt 0:00:47]} 36. Nxb3 {[%emt 0:00:01][%cal Bd2b3,Bb3c1,Bc1d3][%mdl 32]} Rxc4 {[%emt 0:00:15]} 37. Rxd6 {[%emt 0:04:00]} Rc1+ {[%emt 0:01:02]} 38. Nxc1 {[%emt 0:01:35]} Qxd6 $11 {[%emt 0:00:08][%mdl 4096] Endgame KQB-KQN} 39. Nd3 {[%emt 0:00:03]} Qxa3 {[%emt 0:00:16]} 40. Qc2 {[%emt 0:00:38]} Qd6 {[%emt 0:00:25] Prevents Qc7+.} 41. Qc3 {[%emt 0:34:40]} Kf6 {[%emt 0:31:15]} 42. f4 {[%emt 0:01:14][%cal Rf4e5]} Qd4+ {[%emt 0:00:24]} 43. Qxd4 {[%emt 0:00:03]} exd4 {[%emt 0:00:01] KB-KN} 44. Kf2 {[%emt 0:01:32]} g5 {[%emt 0:00:00]} 45. Kf3 {[%emt 0:00:00]} gxf4 {[%emt 0:00:00]} 46. gxf4 {[%emt 0:00:00]} b5 {[%emt 0:00:00]} 47. Nc5 {[%emt 0:00:00]} b4 {[%emt 0:00:00]} 48. Nb3 {[%emt 0:00:00]} d3 {[%emt 0:00:00] [#] Hoping for ...e5.} 49. e5+ $1 {[%emt 0:00:00]} Kf5 {[%emt 0:00:28]} 50. Nd4+ {[%emt 0:00:00]} Kg6 {[%emt 0:00:03]} 51. Ke3 {[%emt 0:00:00]} Bxf4+ {[%emt 0:04:01]} 52. Kxd3 {[%emt 0:00:00]} Kf7 {[%emt 0:00:34]} 53. Kc4 {[%emt 0:00:00]} Bd2 {[%emt 0:00:25]} 54. Nc6 {[%emt 0:00:00]} Kg6 {[%emt 0:00:11] [#] ...Bc3 is the strong threat.} 55. Nd4 {[%emt 0:00:00]} Kf7 {[%emt 0:00:10]} 56. Nc6 {[%emt 0:00:00]} Be1 {[%emt 0:01:04]} 57. Nxb4 {[%emt 0:00:00]} Bxb4 {[%emt 0:00:41]} 58. Kxb4 {[%emt 0:00:00] KP-KP} Kg6 $1 {[%emt 0:00:00]} 59. Kc5 {[%emt 0:00:00] aiming for Kc6.} Kg5 $1 {[%emt 0:00:09]} 60. Kd4 {[%emt 0:00:00]} Kf5 {[%emt 0:01:15]} (60... Kf4 $5) 61. Kd3 {[%emt 0:00:00]} Kf4 {[%emt 0:00:10]} (61... Kxe5 $5 62. Ke3 $8 Kf6 $11) 62. Kd4 {[%emt 0:00:00]} Kf3 {[%emt 0:00:29]} (62... Kf5 $5) 63. Kd3 {[%emt 0:00:00]} Kf4 {[%emt 0:00:30]} 64. Kd4 {[%emt 0:00:00]} Kf5 {[%emt 0:00:10]} 65. Kd3 {[%emt 0:00:00]} Kxe5 {[%emt 0:00:06] Weighted Error Value: White=0.04 (flawless) /Black=0.03 (flawless)} 1/2-1/2